bitfinex/quotes_SOLUSD_20250414
["timestamp","ask_amount","ask_price","bid_price","bid_amount"]
[1744594565516,18.05261531,131.15,131.09,11.95281531]
[1744594565719,18.05261531,131.15,131.1,11.95281531]
[1744594565922,18.05261531,131.15,131.08,6.1856]
[1744594565923,11.95281531,131.12,131.08,6.1856]
[1744594566316,11.95281531,131.13,131.08,6.1856]
[1744594566621,18.05401531,131.12,131.08,6.1856]
[1744594569205,11.95281531,131.15,131.09,11.95281531]
[1744594569736,11.95281531,131.14,131.09,11.95281531]
[1744594569906,0.063,131.17,131.14,1.71576157]
[1744594570112,0.063,131.17,131.15,11.95281531]
[1744594570415,0.063,131.17,131.13,26.0]
[1744594570615,0.063,131.17,131.13,37.95281531]
[1744594571004,0.063,131.17,131.13,44.05361531]
[1744594573319,0.063,131.17,131.14,11.95281531]
[1744594573524,0.063,131.17,131.13,44.05361531]
[1744594574113,0.063,131.17,131.13,32.1008]
[1744594574405,0.063,131.17,131.13,44.05361531]
[1744594575346,0.063,131.17,131.16,18.05221531]
[1744594575527,0.063,131.17,131.16,25.75221531]
[1744594575727,0.063,131.17,131.15,88.7856]
[1744594576034,12.01581531,131.17,131.12,6.1856]
[1744594576338,11.95281531,131.16,131.12,6.1856]
[1744594577430,18.05221531,131.16,131.11,19.62791531]
[1744594577628,11.95281531,131.13,131.09,82.6]
[1744594577819,11.95281531,131.12,131.07,109.92981531]
[1744594578023,11.95281531,131.11,131.07,7.7]
[1744594578213,11.95281531,131.1,131.07,7.7]
[1744594578525,18.05221531,131.16,131.09,11.95281531]
[1744594578733,0.063,131.17,131.14,11.95281531]
[1744594579407,0.063,131.17,131.14,18.05311531]
[1744594580035,0.063,131.17,131.14,6.1003]
[1744594581138,12.01581531,131.17,131.12,32.04371531]
[1744594581339,0.063,131.17,131.13,11.95281531]
[1744594582634,0.063,131.17,131.13,18.05331531]
[1744594582843,12.01581531,131.17,131.12,32.04371531]
[1744594583130,0.063,131.17,131.14,11.95281531]
[1744594583715,0.063,131.17,131.13,11.95281531]
[1744594584337,11.95281531,131.16,131.12,7.7]
[1744594585132,18.05241531,131.16,131.12,7.7]
[1744594585535,6.1619,131.17,131.13,11.95281531]
[1744594585934,18.11471531,131.17,131.12,25.75391531]
[1744594588124,0.063,131.17,131.13,11.95281531]
[1744594588328,0.063,131.17,131.14,11.95281531]
[1744594589940,0.063,131.17,131.16,12.37930002]
[1744594590131,0.063,131.17,131.16,119.72834888]
[1744594591754,0.063,131.17,131.16,125.8591535]
[1744594592245,0.063,131.21,131.2,44.79181043]
[1744594592444,0.063,131.21,131.2,128.25271531]
[1744594593322,0.063,131.21,131.2,120.55271531]
[1744594593745,0.063,131.21,131.2,126.65021531]
[1744594594144,0.063,131.21,131.2,120.55271531]
[1744594596562,0.063,131.21,131.2,126.65021531]
[1744594598564,0.063,131.21,131.2,127.07670002]
[1744594599328,0.063,131.21,131.17,94.55271531]
[1744594599534,11.95281531,131.2,131.17,82.5999]
[1744594599844,11.95281531,131.19,131.14,108.35281531]
[1744594600658,11.95281531,131.2,131.15,11.95281531]
[1744594601053,18.05061531,131.2,131.15,11.95281531]
[1744594601354,0.063,131.21,131.19,11.95281531]
[1744594601552,0.063,131.21,131.2,12.37930002]
[1744594602154,0.063,131.21,131.2,113.62884888]
[1744594602453,0.063,131.21,131.2,125.58166419]
[1744594602659,0.063,131.21,131.2,113.62884888]
[1744594602868,0.063,131.21,131.2,125.58166419]
[1744594603057,0.063,131.21,131.2,131.67916419]
[1744594603249,0.03,131.23,131.2,131.67916419]
[1744594603449,0.03,131.23,131.22,38.37930002]
[1744594603758,0.0001,131.23,131.22,139.62884888]
[1744594605163,0.0001,131.23,131.22,145.72544888]
[1744594606259,0.063,131.24,131.22,145.72544888]
[1744594606260,0.063,131.25,131.23,19.07613357]
[1744594606467,0.063,131.25,131.24,38.70894888]
[1744594606762,0.063,131.25,131.24,12.37930002]
[1744594607161,0.063,131.25,131.24,12.23713845]
[1744594607547,0.063,131.25,131.24,11.95281531]
[1744594608961,0.063,131.25,131.23,11.95281531]
[1744594609356,0.063,131.25,131.24,11.95281531]
[1744594609656,0.063,131.25,131.24,18.04851531]
[1744594609854,0.063,131.25,131.24,37.12464888]
[1744594610564,0.063,131.25,131.24,119.72454888]
[1744594611179,0.063,131.25,131.24,94.55271531]
[1744594611339,0.063,131.25,131.24,82.5999]
[1744594611669,0.063,131.25,131.24,100.93273845]
[1744594611965,0.063,131.25,131.24,119.72454888]
[1744594616289,0.063,131.25,131.24,94.55271531]
[1744594616471,0.063,131.25,131.24,82.5999]
[1744594616979,0.03,131.26,131.18,90.42206157]
[1744594617282,11.95281531,131.23,131.18,90.2799]
[1744594617503,6.0966,131.22,131.18,7.68]
[1744594617659,11.95281531,131.21,131.18,7.68]
[1744594617866,11.95281531,131.2,131.17,0.063]
[1744594618273,11.95281531,131.21,131.17,0.063]
[1744594618785,11.95281531,131.2,131.17,0.063]
[1744594619081,11.95281531,131.18,131.17,0.063]
[1744594619272,19.09966059,131.18,131.17,0.063]
[1744594619784,25.19806059,131.18,131.17,0.063]
[1744594621185,1.6295,131.2,131.17,0.063]
[1744594621388,19.09966059,131.22,131.17,19.16266059]
[1744594621579,25.19616059,131.23,131.18,19.09966059]
[1744594622095,0.03,131.26,131.22,19.09966059]
[1744594622296,0.03,131.26,131.25,19.5261453]
[1744594622496,0.03,131.28,131.27,26.0]
[1744594622797,0.03,131.28,131.27,63.74930945]
[1744594622960,0.03,131.28,131.27,64.17579416]
[1744594623865,0.03,131.28,131.27,70.27009416]
[1744594624261,0.03,131.28,131.27,32.52078471]
[1744594624494,0.03,131.28,131.27,51.6204453]
[1744594625588,0.03,131.28,131.27,70.27009416]
[1744594626269,0.03,131.28,131.27,51.6204453]
[1744594626867,0.03,131.28,131.27,70.27009416]
[1744594627273,0.03,131.28,131.27,51.6204453]
[1744594627569,0.03,131.28,131.27,32.0943]
[1744594627774,0.03,131.28,131.27,26.0]
[1744594628390,0.03,131.28,131.26,107.79426059]
[1744594628804,0.03,131.28,131.26,82.6]
[1744594628979,19.12966059,131.28,131.25,7.68]
[1744594629380,0.03,131.28,131.25,7.68]
[1744594629913,0.03,131.28,131.24,25.19496059]
[1744594630102,19.12966059,131.28,131.23,82.6]
[1744594630297,19.12966059,131.28,131.23,101.69966059]
[1744594630790,19.12966059,131.28,131.23,107.79556059]
[1744594630993,0.03,131.28,131.26,19.09966059]
[1744594631309,0.03,131.28,131.27,19.5261453]
[1744594632605,0.03,131.28,131.27,25.6204453]
[1744594633890,0.03,131.28,131.26,82.6]
[1744594634413,0.03,131.28,131.25,6.0952]
[1744594634709,19.12966059,131.28,131.24,82.6]
[1744594635424,19.12966059,131.28,131.24,88.6956]
[1744594635585,0.03,131.28,131.24,107.79526059]
[1744594635787,19.12966059,131.28,131.24,82.6]
[1744594636113,19.12966059,131.28,131.22,18.933972]
[1744594636114,19.09966059,131.25,131.21,7.68]
[1744594636407,31.70546059,131.28,131.22,19.24182216]
[1744594636408,19.09966059,131.27,131.22,19.24182216]
[1744594636779,19.09966059,131.27,131.22,25.33802216]
[1744594637289,25.61136059,131.28,131.23,19.09966059]
[1744594638411,31.70516059,131.28,131.23,19.09966059]
[1744594638611,19.09966059,131.26,131.21,33.16098373]
[1744594639703,25.19446059,131.26,131.21,33.16098373]
[1744594640205,19.09966059,131.26,131.21,115.76098373]
[1744594640404,19.09966059,131.27,131.22,19.5261453]
[1744594641098,19.09966059,131.24,131.19,19.09966059]
[1744594641301,27.5569,131.25,131.18,18.79181043]
[1744594641500,19.09966059,131.26,131.21,19.09966059]
[1744594641708,19.09966059,131.25,131.2,19.09966059]
[1744594641897,19.09966059,131.25,131.2,25.19706059]
[1744594642411,6.0952,131.26,131.2,19.09966059]
[1744594642613,19.09966059,131.25,131.2,19.09966059]
[1744594642915,19.09966059,131.24,131.19,19.09966059]
[1744594643117,6.0952,131.26,131.19,25.19746059]
[1744594643311,19.09966059,131.24,131.19,25.19746059]
[1744594643913,25.19546059,131.24,131.19,25.19746059]
[1744594645021,19.09966059,131.25,131.19,25.19746059]
[1744594645325,19.09966059,131.25,131.19,6.0978]
[1744594645517,19.09966059,131.25,131.2,19.09966059]
[1744594646129,19.09966059,131.25,131.2,25.19686059]
[1744594646334,19.09966059,131.24,131.19,107.79746059]
[1744594646497,19.09966059,131.25,131.2,19.09966059]
[1744594647022,25.19506059,131.25,131.2,19.09966059]
[1744594647220,19.09966059,131.24,131.19,107.79746059]
[1744594648226,25.19536059,131.24,131.19,107.79746059]
[1744594650433,25.19506059,131.25,131.2,19.09966059]
[1744594651120,18.01707351,131.25,131.2,11.92167351]
[1744594651625,18.01707351,131.25,131.2,18.01917351]
[1744594652027,8.0686,131.28,131.23,11.92167351]
[1744594652028,0.03,131.28,131.23,11.92167351]
[1744594652223,0.03,131.28,131.25,11.92167351]
[1744594652600,0.03,131.28,131.26,11.92167351]
[1744594653104,11.92167351,131.27,131.23,82.6]
[1744594654127,11.92167351,131.25,131.22,7.68]
[1744594654435,11.92167351,131.26,131.21,18.01837351]
[1744594654831,11.92167351,131.26,131.21,6.0967]
[1744594655636,18.01637351,131.26,131.21,6.0967]
[1744594657134,18.01637351,131.26,131.2,94.52167351]
[1744594657135,11.92167351,131.24,131.18,82.6]
[1744594657346,11.92167351,131.21,131.18,82.6]
[1744594657518,22.8407,131.26,131.17,0.063]
[1744594657519,11.92167351,131.2,131.17,0.063]
[1744594657836,11.92167351,131.18,131.17,0.063]
[1744594659206,25.19760586,131.18,131.17,0.063]
[1744594663017,19.09920586,131.18,131.17,0.063]
[1744594663935,25.19760586,131.18,131.17,0.063]
[1744594665037,44.27373943,131.18,131.17,0.0001]
[1744594665227,19.07613357,131.17,131.16,0.063]
[1744594665420,44.27423943,131.17,131.16,0.063]
[1744594666715,25.19810586,131.17,131.16,0.063]
[1744594667233,6.0989,131.17,131.16,0.063]
[1744594667416,25.19810586,131.17,131.16,0.063]
[1744594667616,44.27423943,131.17,131.16,0.063]
[1744594667843,44.27423943,131.17,131.16,0.0001]
[1744594672827,45.07613357,131.15,131.14,0.0001]
[1744594673018,19.07613357,131.14,131.11,0.063]
[1744594673226,19.09920586,131.12,131.11,0.063]
[1744594674040,25.20040586,131.12,131.11,0.063]
[1744594674352,63.37574529,131.12,131.1,0.03]
[1744594674522,19.09920586,131.11,131.1,0.03]
[1744594674916,26.28432314,131.08,131.07,47.12091808]
[1744594675132,71.85533943,131.08,131.07,47.12091808]
[1744594675345,19.07613357,131.07,131.06,94.27183617]
[1744594675542,38.17533943,131.07,131.06,25.04403617]
[1744594675746,38.17533943,131.07,131.06,3.617e-05]
[1744594676129,44.27893943,131.07,131.06,3.617e-05]
[1744594676332,44.27893943,131.07,131.05,70.68137713]
[1744594676540,38.17533943,131.06,131.05,70.68137713]
[1744594677726,44.27933943,131.06,131.05,70.68137713]
[1744594678247,44.27933943,131.06,131.04,0.063]
[1744594678755,19.09920586,131.05,131.04,0.063]
[1744594679847,25.20370586,131.05,131.04,0.063]
[1744594680957,56.99022215,131.04,131.03,0.0001]
[1744594681251,45.07613357,131.02,131.01,117.80229521]
[1744594681453,68.54659265,131.02,131.01,117.80229521]
[1744594681921,19.07613357,131.01,130.96,0.03]
[1744594682126,19.07613357,130.99,130.96,0.03]
[1744594682437,31.04754963,130.99,130.96,0.03]
[1744594683328,38.23905326,130.99,130.98,77.86355426]
[1744594683549,38.23905326,130.99,130.98,1.67975426]
[1744594683963,44.34635326,130.99,130.98,5.426e-05]
[1744594685329,18.933972,130.98,130.96,0.03]
[1744594685549,26.84291969,130.97,130.96,0.03]
[1744594686058,52.02725326,130.97,130.96,0.03]
[1744594687258,32.95111969,130.97,130.96,0.03]
[1744594692261,52.02725326,130.97,130.96,0.03]
[1744594692453,19.07613357,130.96,130.94,0.0001]
[1744594692767,38.23905326,130.96,130.94,0.0001]
[1744594693059,25.27161969,130.96,130.94,0.0001]
[1744594694840,26.0,130.96,130.94,0.0001]
[1744594695049,45.16291969,130.96,130.94,0.0001]
[1744594695453,19.16291969,130.96,130.94,0.0001]
[1744594695836,38.23905326,130.96,130.94,0.0001]
[1744594696052,57.40197295,130.96,130.95,0.0001]
[1744594696363,26.0,130.93,130.9,0.03]
[1744594696660,6.111,130.91,130.9,0.03]
[1744594697565,26.0,130.93,130.9,0.03]
[1744594697942,51.27311969,130.93,130.9,0.03]
[1744594698149,19.16291969,130.91,130.88,1.5033]
[1744594698546,19.16291969,130.91,130.87,6.6504]
[1744594698750,6.111,130.91,130.87,6.6504]
[1744594699155,25.27361969,130.92,130.87,25.81331969]
[1744594699353,26.0,130.93,130.89,19.16291969]
[1744594699556,32.1103,130.93,130.89,19.16291969]
[1744594700969,32.1103,130.93,130.87,12.7631]
[1744594701267,51.27321969,130.93,130.88,19.16291969]
[1744594702577,6.111,130.91,130.87,25.81331969]
[1744594703170,6.111,130.91,130.87,18.63366009]
[1744594703551,18.09426009,130.91,130.87,6.6504]
[1744594703755,11.98326009,130.9,130.87,6.6504]
[1744594703954,11.98326009,130.9,130.87,0.03]
[1744594703955,11.98326009,130.88,130.87,0.03]
[1744594704873,18.09566009,130.88,130.87,0.03]
[1744594707148,6.1124,130.88,130.87,0.03]
[1744594707367,6.1121,130.89,130.87,0.03]
[1744594707775,18.09536009,130.89,130.85,1.4042284]
[1744594708076,6.1121,130.89,130.85,1.4042284]
[1744594708376,6.1121,130.89,130.85,13.38748849]
[1744594708869,6.1121,130.89,130.85,1.4042284]
[1744594710576,13.7916,130.9,130.85,13.38748849]
[1744594710777,18.09386009,130.92,130.87,11.98326009]
[1744594711167,18.09386009,130.92,130.85,1.4042284]
[1744594711168,6.1129,130.87,130.85,1.4042284]
[1744594711377,18.09616009,130.87,130.85,1.4042284]
[1744594712076,30.63290895,130.86,130.85,1.4042284]
[1744594712578,31.05939366,130.86,130.85,1.4042284]
[1744594713382,37.17279366,130.86,130.85,1.4042284]
[1744594714060,18.09666009,130.86,130.85,1.4042284]
[1744594714271,6.1134,130.86,130.85,1.4042284]
[1744594714470,82.9,130.9,130.85,13.38748849]
[1744594714676,6.1115,130.9,130.85,13.38748849]
[1744594715365,18.09476009,130.9,130.85,13.38748849]
[1744594715571,11.98326009,130.89,130.85,1.4042284]
[1744594715880,11.98326009,130.88,130.85,1.4042284]
[1744594717168,19.18347869,130.88,130.85,1.4042284]
[1744594717864,6.1129,130.87,130.85,1.4042284]
[1744594718981,37.83312755,130.86,130.85,1.4042284]
[1744594720179,43.94652755,130.86,130.85,1.4042284]
[1744594721357,25.29687869,130.86,130.85,1.4042284]
[1744594722080,6.1134,130.86,130.85,1.4042284]
[1744594723007,13.7926,130.88,130.85,1.4042284]
[1744594723294,32.97607869,130.88,130.85,1.4042284]
[1744594723455,6.1126,130.88,130.85,1.4042284]
[1744594723783,6.1121,130.89,130.85,1.4042284]
[1744594725190,6.1121,130.89,130.85,27.25250709]
[1744594725761,6.111,130.91,130.86,19.18347869]
[1744594725973,25.29447869,130.91,130.86,19.18347869]
[1744594726169,19.18347869,130.89,130.85,8.0690284]
[1744594726370,19.18347869,130.88,130.85,1.4042284]
[1744594726790,19.18347869,130.89,130.85,1.4042284]
[1744594726981,3.80020589,130.92,130.86,19.18347869]
[1744594726982,26.0,130.9,130.86,19.18347869]
[1744594727177,24.76024886,130.92,130.86,19.18347869]
[1744594727606,19.18347869,130.9,130.85,20.58770709]
[1744594727804,45.18347869,130.89,130.85,1.4042284]
[1744594728014,19.18347869,130.9,130.85,20.58770709]
[1744594728383,19.18347869,130.91,130.86,19.18347869]
[1744594729193,6.1115,130.9,130.85,26.70150709]
[1744594729395,19.18347869,130.89,130.85,1.4042284]
[1744594729590,19.18347869,130.88,130.85,1.4042284]
[1744594729796,19.18347869,130.87,130.85,1.4042284]
[1744594731606,25.29687869,130.86,130.85,1.4042284]
[1744594732198,6.1134,130.86,130.85,1.4042284]
[1744594733411,26.32964886,130.89,130.85,1.4042284]
[1744594733598,6.1126,130.88,130.85,1.4042284]
[1744594733792,19.18347869,130.87,130.85,1.4042284]
[1744594734102,19.18347869,130.86,130.85,1.4042284]
[1744594734283,37.83312755,130.86,130.85,1.4042284]
[1744594735491,44.37301226,130.86,130.85,1.4042284]
[1744594735703,0.14216157,130.85,130.84,0.03]
[1744594735892,19.6099634,130.85,130.84,0.03]
[1744594736086,38.25961226,130.85,130.84,0.03]
[1744594736399,37.83312755,130.85,130.84,0.03]
[1744594736706,38.25961226,130.85,130.84,0.03]
[1744594737606,44.37341226,130.85,130.84,0.03]
[1744594739203,37.19066208,130.85,130.84,0.03]
[1744594741020,36.76417737,130.85,130.84,0.03]
[1744594742033,82.9,130.87,130.84,0.03]
[1744594742309,6.1101,130.93,130.86,12.00072851]
[1744594742514,6.1101,130.93,130.89,12.00072851]
[1744594742693,6.1727,130.94,130.9,12.00072851]
[1744594743020,18.17342851,130.94,130.88,12.00072851]
[1744594743196,18.17342851,130.94,130.89,12.00072851]
[1744594743519,18.64964886,130.93,130.88,12.00072851]
[1744594743902,6.1727,130.94,130.89,18.11262851]
[1744594744100,6.1727,130.94,130.89,12.00072851]
[1744594744492,6.1727,130.94,130.86,88.7132]
[1744594744493,30.65037737,130.93,130.86,88.7132]
[1744594744695,6.1727,130.94,130.89,12.00072851]
[1744594745114,6.1727,130.94,130.9,12.00072851]
[1744594745327,6.1727,130.94,130.9,19.16437632]
[1744594746213,6.1727,130.94,130.89,19.16437632]
[1744594747013,37.81402518,130.93,130.88,19.16437632]
[1744594747214,18.64964886,130.93,130.89,19.16437632]
[1744594747411,6.1727,130.94,130.89,19.16437632]
[1744594747721,0.063,130.94,130.9,19.16437632]
[1744594750520,0.063,130.94,130.91,19.16437632]
[1744594751198,0.063,130.94,130.92,19.16437632]
[1744594751923,0.063,130.94,130.91,19.16437632]
[1744594754425,0.063,130.94,130.9,1.632]
[1744594754623,19.16437632,130.93,130.87,19.16437632]
[1744594754806,37.87702518,130.94,130.88,19.16437632]
[1744594755808,6.1101,130.93,130.88,19.16437632]
[1744594756123,6.1101,130.93,130.89,19.16437632]
[1744594756316,6.1101,130.93,130.88,19.16437632]
[1744594757827,6.1101,130.93,130.88,25.27677632]
[1744594758047,6.1101,130.93,130.89,19.16437632]
[1744594758333,6.1101,130.93,130.88,19.16437632]
[1744594759733,19.16437632,130.91,130.85,88.9839]
[1744594759908,19.16437632,130.88,130.84,0.03]
[1744594760309,19.16437632,130.87,130.84,0.03]
[1744594760507,19.16437632,130.85,130.84,0.03]
[1744594760810,37.81402518,130.85,130.84,0.03]
[1744594761819,43.92782518,130.85,130.84,0.03]
[1744594762731,44.35430989,130.85,130.84,0.03]
[1744594765232,37.18890543,130.85,130.84,0.03]
[1744594767842,43.33061597,130.85,130.84,0.03]
[1744594769020,37.18890543,130.85,130.84,0.03]
[1744594769737,43.2754351,130.85,130.84,0.03]
[1744594769939,43.2754351,130.85,130.84,0.0001]
[1744594773536,0.28432314,130.8,130.79,0.03]
[1744594773736,30.64862072,130.8,130.79,0.03]
[1744594775947,36.76482072,130.8,130.79,0.03]
[1744594776645,6.1162,130.8,130.79,0.03]
[1744594777041,36.76482072,130.8,130.79,0.03]
[1744594777546,37.19130543,130.8,130.79,0.03]
[1744594777744,120.09130543,130.8,130.79,0.0001]
[1744594777942,120.09130543,130.8,130.78,0.03]
[1744594777943,25.19273357,130.79,130.78,0.0101]
[1744594778129,37.19170543,130.79,130.78,0.0101]
[1744594779129,44.64964886,130.77,130.76,0.0001]
[1744594779447,56.64862072,130.77,130.76,0.0001]
[1744594780439,63.19270543,130.77,130.76,0.0001]
[1744594780961,0.42648471,130.75,130.71,0.03]
[1744594781164,11.99897186,130.72,130.71,0.03]
[1744594781669,30.64862072,130.72,130.71,0.03]
[1744594781960,11.99897186,130.73,130.71,0.03]
[1744594782155,8.08648471,130.75,130.71,0.03]
[1744594782156,11.99897186,130.72,130.71,0.03]
[1744594782333,18.11887186,130.72,130.71,0.03]
[1744594782836,18.54535657,130.72,130.71,0.03]
[1744594786054,49.19397729,130.72,130.71,0.0001]
[1744594786358,0.42648471,130.7,130.65,6.3676]
[1744594786655,30.64862072,130.68,130.65,6.3676]
[1744594788057,6.1222,130.67,130.65,6.3676]
[1744594792560,6.1222,130.67,130.65,0.03]
[1744594792763,18.12117186,130.67,130.65,0.03]
[1744594795069,6.1222,130.67,130.65,0.03]
[1744594796875,18.12117186,130.67,130.65,0.03]
[1744594797365,6.1222,130.67,130.65,0.03]
[1744594798355,18.12117186,130.67,130.65,0.03]
[1744594800578,6.1222,130.67,130.65,0.03]
[1744594801256,30.64862072,130.66,130.65,0.03]
[1744594802165,36.77132072,130.66,130.65,0.03]
[1744594803281,18.12167186,130.66,130.65,0.03]
[1744594803485,36.77132072,130.66,130.65,0.03]
[1744594803689,37.19780543,130.66,130.65,0.03]
[1744594806868,24.77234886,130.66,130.65,0.03]
[1744594807178,6.1227,130.66,130.65,0.03]
[1744594807379,18.12167186,130.66,130.65,0.03]
[1744594808178,19.27649929,130.71,130.65,12.02897186]
[1744594808380,27.30017186,130.71,130.65,12.02897186]
[1744594808580,11.99897186,130.7,130.65,12.02897186]
[1744594809080,11.99897186,130.69,130.65,0.03]
[1744594809253,18.12117186,130.68,130.65,0.03]
[1744594810179,18.12047186,130.69,130.65,0.03]
[1744594810355,6.1215,130.69,130.65,12.02897186]
[1744594811178,6.121,130.7,130.65,18.15207186]
[1744594811693,6.121,130.7,130.65,12.02897186]
[1744594811989,18.11997186,130.7,130.65,18.15177186]
[1744594812159,6.1205,130.71,130.67,18.22617186]
[1744594813505,6.1205,130.71,130.67,6.2272]
[1744594813807,6.1205,130.71,130.67,18.22617186]
[1744594814163,18.11897186,130.72,130.67,24.34827186]
[1744594814565,25.77867186,130.73,130.68,11.99897186]
[1744594814765,11.99897186,130.72,130.67,24.34827186]
[1744594815677,18.11887186,130.72,130.67,24.34827186]
[1744594816285,6.1199,130.72,130.68,11.99897186]
[1744594816691,18.11887186,130.72,130.67,24.34827186]
[1744594817492,18.11887186,130.72,130.67,6.2272]
[1744594817676,11.99897186,130.71,130.67,6.2272]
[1744594817986,11.99897186,130.69,130.66,1.6116]
[1744594818992,18.12057186,130.69,130.66,1.6116]
[1744594819575,6.1216,130.69,130.66,1.6116]
[1744594820611,18.12057186,130.69,130.66,1.6116]
[1744594820792,18.12057186,130.69,130.65,82.63]
[1744594821395,18.11997186,130.7,130.65,94.62897186]
[1744594821694,18.11997186,130.7,130.65,82.63]
[1744594821695,11.99897186,130.69,130.65,82.63]
[1744594822195,11.99897186,130.68,130.65,0.03]
[1744594822586,18.12117186,130.68,130.65,0.03]
[1744594822888,6.1222,130.68,130.65,0.03]
[1744594824489,11.99897186,130.67,130.65,0.03]
[1744594824691,6.1227,130.66,130.65,0.03]
[1744594825076,18.12167186,130.66,130.65,0.03]
[1744594826688,6.1227,130.66,130.65,0.03]
[1744594827485,18.12167186,130.66,130.65,0.03]
[1744594828180,36.77132072,130.66,130.65,0.03]
[1744594828381,37.19780543,130.66,130.65,0.03]
[1744594828675,0.42648471,130.65,130.62,0.03]
[1744594828883,11.99897186,130.63,130.62,0.03]
[1744594829789,36.77272072,130.63,130.62,0.03]
[1744594830295,18.12307186,130.63,130.62,0.03]
[1744594831804,22.43416844,130.63,130.62,0.03]
[1744594832006,19.07613357,130.62,130.61,0.0001]
[1744594832204,31.07510543,130.62,130.61,0.0001]
[1744594832414,113.97510543,130.62,130.61,0.0001]
[1744594832788,120.03688668,130.62,130.61,0.0001]
[1744594833184,120.09970543,130.62,130.61,0.0001]
[1744594836016,6.1246,130.62,130.61,0.0001]
[1744594837325,19.65897186,130.63,130.61,0.0001]
[1744594837326,6.1243,130.63,130.61,0.0001]
[1744594839822,30.64862072,130.62,130.61,0.0001]
[1744594839994,30.79078229,130.62,130.61,0.0001]
[1744594840928,26.28432314,130.6,130.59,4.53796341]
[1744594841096,38.42545657,130.6,130.59,4.53796341]
[1744594841503,44.55095657,130.6,130.59,4.53796341]
[1744594842613,63.20060543,130.6,130.59,4.53796341]
[1744594842817,70.86060543,130.6,130.59,4.53796341]
[1744594844310,70.86060543,130.6,130.56,0.03]
[1744594844311,44.64964886,130.57,130.56,0.03]
[1744594844615,56.64862072,130.57,130.56,0.03]
[1744594844816,30.64862072,130.57,130.56,0.03]
[1744594845224,30.64862072,130.57,130.49,7.8504]
[1744594845225,18.64964886,130.56,130.49,7.8504]
[1744594845521,11.99897186,130.53,130.49,7.8504]
[1744594845697,6.1293,130.52,130.49,7.8504]
[1744594846389,6.1289,130.53,130.49,19.84937186]
[1744594847319,15.3169,130.58,130.52,11.99897186]
[1744594847621,11.99897186,130.57,130.52,11.99897186]
[1744594847805,11.99897186,130.56,130.51,11.99897186]
[1744594848123,11.99897186,130.54,130.49,19.84937186]
[1744594850025,6.1288,130.53,130.49,19.84937186]
[1744594851330,6.1288,130.53,130.49,7.8504]
[1744594851524,6.1288,130.53,130.49,19.84937186]
[1744594853144,11.99897186,130.52,130.49,7.8504]
[1744594853304,11.99897186,130.51,130.47,0.03]
[1744594853508,30.64862072,130.52,130.47,12.02897186]
[1744594855831,6.1297,130.51,130.47,12.02897186]
[1744594857143,6.1293,130.52,130.48,11.99897186]
[1744594857319,6.1293,130.52,130.47,12.02897186]
[1744594857517,11.99897186,130.49,130.47,0.03]
[1744594857747,6.1312,130.48,130.47,0.03]
[1744594858712,83.18432314,130.53,130.47,0.03]
[1744594858713,82.9,130.53,130.47,0.03]
[1744594858918,26.0,130.51,130.47,12.02897186]
[1744594859223,11.99897186,130.52,130.47,12.02897186]
[1744594860117,18.12847186,130.52,130.47,18.16057186]
[1744594860437,18.12727186,130.54,130.48,11.99897186]
[1744594861242,7.71411385,130.52,130.47,7.74411385]
[1744594861541,7.71411385,130.52,130.47,0.03]
[1744594862037,7.71411385,130.52,130.47,7.74411385]
[1744594862227,6.1293,130.52,130.48,7.71411385]
[1744594862629,13.84341385,130.52,130.47,7.74411385]
[1744594863319,13.84341385,130.52,130.47,0.03]
[1744594863630,13.84341385,130.52,130.47,7.74411385]
[1744594863941,6.1293,130.52,130.48,7.71411385]
[1744594864422,6.1293,130.52,130.47,7.74411385]
[1744594865230,13.84341385,130.52,130.47,7.74411385]
[1744594866128,7.71411385,130.5,130.47,0.03]
[1744594866316,13.84531385,130.48,130.47,0.03]
[1744594867436,6.1312,130.48,130.47,0.03]
[1744594867636,13.84531385,130.48,130.47,0.03]
[1744594867836,7.71411385,130.47,130.42,7.5917]